bitfinex/quotes_ETHUSD_20250130
["timestamp","ask_amount","ask_price","bid_price","bid_amount"]
[1738221198402,3.13923,3185.5,3184.9,4.675808]
[1738221198604,3.13894,3185.8,3184.9,4.675808]
[1738221199158,3.13904,3185.7,3185.1,3.13961]
[1738221199760,3.13919,3185.6,3184.9,7.6587247]
[1738221199915,3.13919,3185.6,3185.0,0.76587247]
[1738221200113,3.14038,3184.4,3183.9,0.7849]
[1738221200498,3.14043,3184.3,3183.9,0.7849]
[1738221201033,3.14038,3184.4,3183.9,0.7849]
[1738221201554,3.89966,3185.0,3183.9,0.7849]
[1738221201699,3.14008,3184.7,3184.1,3.14051]
[1738221201908,3.14014,3184.6,3184.1,0.70662]
[1738221202153,3.14008,3184.7,3184.1,0.70662]
[1738221202312,3.14014,3184.6,3184.1,0.70662]
[1738221202709,3.13999,3184.8,3184.1,3.84721]
[1738221202962,3.13999,3184.8,3184.2,4.651891]
[1738221203554,3.14001,3184.7,3184.2,4.651891]
[1738221203863,3.13999,3184.8,3184.2,4.651891]
[1738221205863,3.13972,3185.0,3184.4,3.1403]
[1738221206005,3.13972,3185.0,3184.5,0.7854]
[1738221207040,3.13972,3185.0,3184.5,1.47797]
[1738221207251,3.13982,3184.9,3184.5,1.47797]
[1738221207441,3.13953,3185.2,3184.5,1.47797]
[1738221207756,3.1398,3185.0,3184.5,1.47797]
[1738221207964,3.13989,3184.9,3184.5,0.7854]
[1738221208138,3.1398,3185.0,3184.5,0.7854]
[1738221208344,3.14,3184.8,3184.5,0.7854]
[1738221208543,3.13972,3185.0,3184.5,0.7854]
[1738221209646,3.13995,3184.8,3184.5,0.7854]
[1738221211434,3.13994,3184.8,3184.5,0.7854]
[1738221211647,3.14001,3184.7,3184.5,0.7854]
[1738221211951,3.14011,3184.6,3184.5,0.7854]
[1738221212422,3.14022,3184.5,3184.1,3.7988]
[1738221212626,3.14022,3184.5,3184.1,0.7988]
[1738221213351,3.14041,3184.3,3184.1,0.7988]
[1738221213551,3.14088,3183.9,3183.5,0.7801]
[1738221213920,3.14088,3183.9,3183.5,1.472245]
[1738221214120,3.14169,3183.0,3182.5,4.07027302]
[1738221215034,3.14169,3183.0,3182.5,0.7851]
[1738221215239,3.14169,3183.0,3182.5,0.005]
[1738221219716,3.14157,3183.2,3182.5,3.14717]
[1738221219717,3.1416,3183.1,3182.5,3.14717]
[1738221220356,3.14169,3183.0,3182.5,0.005]
[1738221220593,3.1413,3183.4,3182.5,0.005]
[1738221220859,3.14155,3183.2,3182.8,0.7774]
[1738221221079,3.14169,3183.0,3182.5,0.7824]
[1738221228891,2.9828867,3184.1,3182.5,3.7824]
[1738221229091,3.14145,3183.3,3183.0,0.8111]
[1738221229592,3.14149,3183.2,3183.0,0.8111]
[1738221229802,2.9828867,3183.2,3182.5,0.005]
[1738221229965,3.14169,3183.0,3182.5,0.005]
[1738221230518,3.14167,3183.1,3182.5,0.005]
[1738221230865,3.14169,3183.0,3182.5,0.005]
[1738221235007,3.14169,3183.0,3182.5,3.005]
[1738221236787,3.14169,3183.0,3182.5,0.005]
[1738221238322,3.92149,3183.0,3182.5,0.005]
[1738221241787,3.14208,3182.6,3182.3,0.27642651]
[1738221242598,3.1419,3182.8,3182.3,0.27642651]
[1738221242932,3.14172,3183.0,3182.3,0.69629916]
[1738221243167,3.14189,3182.8,3182.4,0.7979]
[1738221243491,3.14199,3182.7,3182.4,0.7979]
[1738221244405,3.14179,3182.9,3182.4,0.7979]
[1738221245995,3.14175,3183.0,3182.4,0.7979]
[1738221246347,3.14175,3183.0,3182.5,0.72166565]
[1738221246521,3.14141,3183.3,3182.7,3.14197]
[1738221246830,3.14141,3183.3,3182.8,0.7625]
[1738221247151,3.14141,3183.3,3182.9,0.390447]
[1738221249652,3.14108,3183.7,3182.9,3.532187]
[1738221249789,3.14116,3183.6,3182.9,3.14174]
[1738221249994,3.14136,3183.4,3182.8,3.90438]
[1738221250222,3.14146,3183.3,3182.8,0.7625]
[1738221251456,3.1412,3183.5,3182.8,0.7625]
[1738221251764,3.1412,3183.5,3182.9,3.14169]
[1738221252759,3.1412,3183.5,3183.0,3.14168]
[1738221252961,3.14099,3183.7,3183.0,3.14161]
[1738221253264,6.28208,3183.7,3183.0,3.14161]
[1738221253636,3.1411,3183.6,3183.0,3.14161]
[1738221253848,3.921,3183.8,3183.1,3.14152]
[1738221254065,3.14102,3183.7,3183.1,3.14152]
[1738221256854,3.921,3183.8,3183.2,3.14146]
[1738221257184,3.1409,3183.8,3183.3,0.7682]
[1738221257554,7.0581,3184.0,3183.3,3.90959]
[1738221257754,3.14096,3183.8,3183.3,0.7682]
[1738221258686,3.14096,3183.8,3183.3,3.90958]
[1738221261878,3.14096,3183.8,3183.3,0.7682]
[1738221262874,3.14096,3183.8,3183.3,3.90956]
[1738221263195,3.14102,3183.7,3183.3,0.7682]
[1738221263909,3.14096,3183.8,3183.3,0.7682]
[1738221264209,3.14081,3183.9,3183.3,3.90958]
[1738221264361,3.91733,3184.0,3183.3,3.90958]
[1738221264962,3.91733,3184.0,3183.4,3.14126]
[1738221265998,3.14073,3184.0,3183.4,3.14122]
[1738221266995,3.14073,3184.0,3183.5,3.14118]
[1738221267202,3.14073,3184.0,3183.3,3.90952]
[1738221267415,3.14073,3184.0,3183.3,0.7682]
[1738221267703,3.14073,3184.0,3183.4,3.14126]
[1738221269000,3.14054,3184.2,3183.4,3.84635]
[1738221269211,3.9506,3184.3,3183.7,3.14094]
[1738221269504,3.1404,3184.3,3183.8,0.774]
[1738221269697,3.14027,3184.5,3183.9,3.14079]
[1738221269895,3.14027,3184.5,3183.8,0.774]
[1738221269896,3.91355,3184.6,3183.8,0.774]
[1738221270207,3.14035,3184.4,3183.8,3.91484]
[1738221271274,0.7734,3184.6,3184.0,3.1407]
[1738221271473,0.7734,3184.6,3183.8,3.91484]
[1738221271474,3.14054,3184.2,3183.8,0.774]
[1738221271697,3.14042,3184.3,3183.8,0.774]
[1738221271895,0.7734,3184.6,3183.8,0.774]
[1738221272190,3.14038,3184.4,3183.8,0.774]
[1738221272795,3.14038,3184.4,3183.8,3.91487]
[1738221273612,3.14038,3184.4,3183.8,0.774]
[1738221274405,3.14038,3184.4,3183.8,3.91489]
[1738221274772,3.91354,3184.6,3183.8,3.91489]
[1738221275107,3.91354,3184.6,3184.0,3.14068]
[1738221275304,3.91354,3184.6,3183.8,3.91489]
[1738221275474,3.14045,3184.3,3183.8,0.774]
[1738221277509,0.8155,3184.2,3183.4,0.8038]
[1738221277813,3.14104,3183.7,3183.2,0.8038]
[1738221278118,3.14122,3183.5,3182.9,3.14172]
[1738221278978,3.14122,3183.5,3182.9,3.14171]
[1738221279511,3.14122,3183.5,3182.9,6.28343]
[1738221279714,3.14063,3184.1,3182.9,6.28343]
[1738221279715,0.7954,3183.8,3183.0,3.14169]
[1738221279873,3.13961,3185.2,3183.1,3.14159]
[1738221279874,3.14063,3184.1,3183.1,3.14159]
[1738221280209,3.14178,3183.0,3182.1,3.94504]
[1738221280379,3.14189,3182.8,3182.1,3.94504]
[1738221280574,3.9015,3182.9,3182.3,3.14237]
[1738221280975,0.7597,3182.9,3182.3,3.14237]
[1738221281388,0.7597,3182.9,3182.1,1.197004]
[1738221281587,0.7597,3182.9,3182.4,3.14218]
[1738221281817,3.14151,3183.2,3182.5,3.14209]
[1738221281988,3.92371,3183.1,3182.5,3.14209]
[1738221282531,3.93343,3183.4,3182.8,3.14188]
[1738221286516,3.93343,3183.4,3182.9,3.14178]
[1738221290030,0.7921,3183.4,3182.9,3.14178]
[1738221290599,3.14121,3183.5,3182.9,3.14178]
[1738221291145,0.7991,3183.6,3182.9,3.14178]
[1738221291300,0.7991,3183.6,3183.1,3.14152]
[1738221292229,3.9402,3183.6,3183.1,3.14152]
[1738221293655,3.9402,3183.6,3182.9,3.455958]
[1738221293944,7.08139,3183.6,3182.9,3.455958]
[1738221294112,3.9402,3183.6,3182.9,3.455958]
[1738221294444,7.08138,3183.6,3182.9,3.455958]
[1738221294612,3.14123,3183.5,3182.9,3.14178]
[1738221297751,0.62272685,3183.2,3182.9,3.14178]
[1738221299335,0.62272685,3183.2,3183.0,3.14159]
[1738221299547,0.7991,3183.6,3183.2,3.14147]
[1738221299851,3.14093,3183.8,3183.2,3.14147]
[1738221300223,3.14093,3183.8,3183.2,6.2829]
[1738221300421,3.14093,3183.8,3183.2,3.14143]
[1738221300778,3.14074,3184.0,3183.6,3.94253]
[1738221300779,0.63775549,3184.0,3183.6,3.94253]
[1738221301727,0.63775549,3184.0,3183.7,3.14091]
[1738221303850,0.63775549,3184.0,3183.6,0.8015]
[1738221304256,3.14061,3184.1,3183.6,0.8015]
[1738221304470,3.1407,3184.0,3183.6,0.8015]
[1738221304624,3.14061,3184.1,3183.6,0.8015]
[1738221306791,3.14072,3184.0,3183.6,0.8015]
[1738221307105,3.14061,3184.1,3183.6,0.8015]
[1738221307782,3.91143,3184.3,3183.6,3.94258]
[1738221307989,3.14056,3184.2,3183.6,3.94258]
[1738221308667,3.14056,3184.2,3183.6,0.8015]
[1738221309084,3.14056,3184.2,3183.6,3.94259]
[1738221309397,3.14056,3184.2,3183.6,0.8015]
[1738221309898,3.14056,3184.2,3183.6,3.94251]
[1738221310264,0.771,3184.3,3183.6,0.8015]
[1738221310467,3.14031,3184.4,3183.8,3.14083]
[1738221310953,6.28071,3184.4,3183.7,3.14093]
[1738221311096,3.14031,3184.4,3183.7,3.14093]
[1738221311263,3.14052,3184.2,3183.7,3.14093]
[1738221313895,3.14031,3184.4,3183.7,3.14093]
[1738221314409,3.14041,3184.3,3183.7,3.14093]
[1738221315102,3.14031,3184.4,3183.7,3.14093]
[1738221315279,2.9828867,3184.6,3183.7,0.394243]
[1738221315478,1.4576196,3184.8,3184.3,3.9327]
[1738221315681,3.13897,3185.8,3184.5,3.14012]
[1738221315682,0.8176,3185.2,3184.5,3.14012]
[1738221315895,3.13934,3185.4,3184.5,0.707275]
[1738221316204,3.13935,3185.4,3184.4,3.0]
[1738221316405,3.1395,3185.3,3184.6,3.14009]
[1738221316566,3.95675,3185.6,3184.7,3.13999]
[1738221316907,3.13932,3185.4,3184.8,3.13987]
[1738221317109,3.13932,3185.4,3184.8,3.91397]
[1738221319977,3.13932,3185.4,3184.8,3.13987]
[1738221321309,3.95675,3185.6,3184.8,3.13987]
[1738221321478,3.95675,3185.6,3184.9,3.1398]
[1738221321678,0.8176,3185.6,3185.0,3.13971]
[1738221322596,3.95673,3185.6,3185.0,3.13971]
[1738221327018,3.95673,3185.6,3184.8,3.13984]
[1738221327204,0.7742,3185.2,3184.2,3.1405]
[1738221327519,3.91376,3185.2,3184.4,3.14029]
[1738221327719,3.13972,3185.0,3184.4,3.14029]
[1738221328617,3.91376,3185.2,3184.1,3.96292]
[1738221328618,0.7742,3185.2,3184.1,3.96292]
[1738221328814,3.13977,3185.0,3184.3,3.14038]
[1738221329696,3.13977,3185.0,3184.4,3.14027]
[1738221331737,3.13977,3185.0,3184.5,3.14018]
[1738221331933,3.91372,3185.2,3184.6,3.14005]
[1738221332133,0.7742,3185.2,3184.8,3.13985]
[1738221332333,0.7742,3185.2,3184.9,3.13972]
[1738221332534,3.13912,3185.6,3184.9,3.13972]
[1738221332535,0.7823,3185.5,3184.9,3.13972]
[1738221332899,0.7823,3185.5,3185.1,3.13961]
[1738221334309,0.7823,3185.5,3184.9,6.27946]
[1738221334510,3.92159,3185.5,3184.9,3.13972]
[1738221335000,0.7823,3185.5,3185.0,3.13971]
[1738221335206,0.7823,3185.5,3184.9,3.13972]
[1738221335407,0.7823,3185.5,3184.9,6.27946]
[1738221335603,0.7823,3185.5,3184.9,3.13972]
[1738221335842,0.7823,3185.5,3185.1,3.13961]
[1738221336217,0.7823,3185.5,3184.4,6.1231067]
[1738221336218,3.7651867,3185.5,3184.4,0.796]
[1738221336541,3.91892,3185.0,3184.4,3.93629]
[1738221337127,0.7792,3185.0,3184.4,3.93629]
[1738221337337,0.7792,3185.0,3184.5,3.1402]
[1738221337545,3.13984,3184.9,3184.4,1.189629]
[1738221337857,0.7792,3185.0,3184.4,4.329899]
[1738221338044,3.13985,3184.9,3184.2,3.14042]
[1738221338422,3.13985,3184.9,3184.3,3.14033]
[1738221339460,0.7792,3185.0,3184.4,6.28051]
[1738221339647,0.7792,3185.0,3184.4,3.14022]
[1738221339947,0.7792,3185.0,3184.5,3.14017]
[1738221340436,3.13966,3185.1,3184.6,3.14009]
[1738221340747,3.13966,3185.1,3184.6,0.7818]
[1738221341327,3.13966,3185.1,3184.6,3.92189]
[1738221342816,0.8196,3185.2,3184.6,3.92182]
[1738221343556,3.95915,3185.2,3184.6,3.92182]
[1738221343913,3.95915,3185.2,3184.6,4.628027]
[1738221344567,3.13993,3184.8,3184.3,0.7745]
[1738221344871,0.8196,3185.2,3184.3,3.91485]
[1738221344872,6.2795,3185.0,3184.3,3.91485]
[1738221345067,3.13971,3185.0,3184.3,6.91485]
[1738221345414,3.13983,3184.9,3184.3,6.91485]
[1738221345727,3.13971,3185.0,3184.5,3.1402]
[1738221345946,3.13971,3185.0,3184.5,3.83167]
[1738221346349,3.13971,3185.0,3184.5,0.69147]
[1738221346524,3.13982,3184.9,3184.3,6.14033]
[1738221346731,3.13971,3185.0,3184.2,3.14046]
[1738221346944,3.13971,3185.0,3184.4,3.14029]
[1738221347442,3.13997,3184.8,3184.2,3.14043]
[1738221348236,3.13971,3185.0,3183.8,5.9828867]
[1738221348237,3.14017,3184.6,3183.8,6.91738]
[1738221348477,3.14017,3184.6,3183.9,3.8718923]
[1738221348623,3.14022,3184.5,3183.9,3.8718923]
[1738221349141,0.7526,3184.2,3183.7,6.535213]
[1738221349614,0.7526,3184.2,3183.7,3.394243]
[1738221349817,0.7526,3184.2,3183.7,6.535163]
[1738221350253,0.7526,3184.2,3183.7,3.535163]
[1738221352046,0.7526,3184.2,3183.7,0.394243]
[1738221352218,3.14025,3184.5,3183.9,3.90364]
[1738221352918,3.14025,3184.5,3183.9,3.14074]
[1738221354743,0.7789,3184.6,3184.0,3.14064]
[1738221355132,0.7789,3184.6,3184.1,3.14056]
[1738221355337,3.91904,3184.6,3184.1,3.14056]
[1738221356632,3.91904,3184.6,3183.9,3.14072]
[1738221356955,0.7789,3184.6,3184.0,3.1407]
[1738221357165,3.91905,3184.6,3184.1,3.14059]
[1738221357523,0.7789,3184.6,3184.1,3.14059]
[1738221357725,3.89409,3184.9,3184.1,3.14059]
[1738221357925,3.13992,3184.8,3184.2,0.314059]
[1738221358449,3.89409,3184.9,3184.2,0.314059]
[1738221358626,3.14004,3184.7,3184.2,3.454539]
[1738221359039,3.14004,3184.7,3184.2,0.314059]
[1738221359241,3.89409,3184.9,3184.2,0.314059]
[1738221359446,3.89409,3184.9,3184.3,1.1336649]
[1738221359641,3.13999,3184.8,3184.3,1.1336649]
[1738221361122,3.14005,3184.7,3184.3,0.3454649]
[1738221361633,0.757,3184.3,3183.8,3.0]
[1738221361828,0.757,3185.2,3184.1,0.7678]
[1738221362041,3.14021,3184.5,3184.1,0.7678]
[1738221362636,0.757,3184.6,3184.1,3.90837]
[1738221363764,0.757,3184.6,3184.1,3.90030522]
[1738221364266,0.757,3184.6,3184.1,4.41043579]
[1738221364430,3.95556,3184.9,3184.2,3.14042]
[1738221364944,3.95556,3184.9,3184.3,3.14038]
[1738221366360,3.95556,3184.9,3184.1,1.26986579]
[1738221366567,3.14001,3184.7,3184.1,3.90028522]
[1738221367062,3.14001,3184.7,3184.2,3.1405]
[1738221368076,0.63741138,3185.3,3184.2,3.1405]
[1738221368281,0.63741138,3185.3,3183.6,3.0]
[1738221368282,0.7986,3185.2,3184.5,0.7553]
[1738221368493,3.93813,3185.2,3184.7,3.14]
[1738221368902,3.93813,3185.2,3184.6,3.14005]
[1738221369059,3.1399,3184.9,3184.5,0.7553]
[1738221369379,3.13988,3184.9,3184.3,3.14038]
[1738221371094,3.13988,3184.9,3184.2,3.95233]
[1738221371249,3.13988,3184.9,3184.4,3.1403]
[1738221371658,3.13962,3185.1,3184.4,3.1403]
[1738221371872,3.13973,3185.0,3184.4,3.1403]
[1738221372897,3.13962,3185.1,3184.5,3.1402]
[1738221373187,0.7986,3185.2,3184.6,3.14001]
[1738221373345,0.7986,3185.2,3184.6,3.95241]
[1738221373553,0.7986,3185.2,3184.7,3.13998]
[1738221373756,0.7986,3185.2,3184.7,3.13992]
[1738221374995,3.96785,3185.5,3184.7,3.13992]
[1738221375199,3.13932,3185.4,3184.9,3.13981]
[1738221379106,0.8286,3185.5,3184.9,3.13981]
[1738221379416,0.7599,3185.7,3185.2,3.13943]
[1738221379567,3.13899,3185.8,3185.2,3.13943]
[1738221379777,3.13899,3185.8,3185.2,2.48943]
[1738221380281,3.13899,3185.8,3185.2,5.62887]
[1738221380498,3.13899,3185.8,3185.2,2.48943]
[1738221386129,3.13877,3186.0,3185.4,3.91821]
[1738221387429,3.13884,3185.9,3185.4,0.7789]
[1738221388002,3.13884,3185.9,3185.4,3.91819]
[1738221388832,3.13857,3186.2,3185.6,3.13908]
[1738221389037,6.27719,3186.2,3185.6,3.13908]
[1738221389224,3.13866,3186.1,3185.6,3.13908]
[1738221390436,3.91437,3186.3,3185.6,3.13908]
[1738221390613,3.13835,3186.4,3185.7,3.92734]
[1738221390814,3.13835,3186.4,3185.8,3.13886]
[1738221391532,3.13808,3186.7,3185.7,3.13894]
[1738221391836,3.13841,3186.4,3185.8,0.7762]
[1738221392201,3.13876,3186.0,3185.5,3.91029]
[1738221392733,3.13855,3186.2,3185.5,3.91029]
[1738221393032,3.13855,3186.2,3185.6,3.1391]
[1738221393717,3.13864,3186.1,3185.5,3.91029]
[1738221395342,3.13855,3186.2,3185.5,3.91029]
[1738221395526,3.13855,3186.2,3185.6,3.1391]
[1738221395838,3.13864,3186.1,3185.5,3.91029]
[1738221396208,3.13855,3186.2,3185.6,3.13903]
[1738221399103,3.13835,3186.4,3185.7,3.13902]
[1738221399726,3.13859,3186.2,3185.6,3.1391]
[1738221400544,3.13859,3186.2,3185.5,3.91029]
[1738221400545,0.7748,3186.1,3185.2,0.78]
[1738221400716,3.13962,3185.1,3184.7,0.78]
[1738221400923,3.13972,3185.0,3184.7,0.78]
[1738221401150,3.9234,3185.0,3184.3,3.92034]
[1738221401470,3.13983,3184.9,3184.3,4.92470867]
[1738221401623,0.7836,3185.0,3184.3,1.78436867]
[1738221401823,0.7836,3185.0,3184.5,3.1402]
[1738221403230,3.13967,3185.1,3184.5,3.1402]
[1738221405090,0.7843,3185.3,3184.3,0.78]
[1738221405292,3.14013,3184.6,3184.0,0.7762]
[1738221406284,3.14013,3184.6,3184.0,3.91687]
[1738221406685,3.14013,3184.6,3184.0,5.22092767]
[1738221406887,3.13994,3184.8,3184.1,3.14059]
[1738221407183,3.13994,3184.8,3184.2,3.14045]
[1738221408165,0.7519,3184.9,3184.3,3.14038]
[1738221408687,3.13974,3185.0,3184.3,3.9395]
[1738221408892,3.13962,3185.1,3184.5,3.1402]
[1738221409293,3.13973,3185.0,3184.4,0.39395]
[1738221409584,3.13973,3185.0,3184.3,3.93944]
[1738221410908,3.13973,3185.0,3184.4,3.14022]
[1738221411275,3.13973,3185.0,3184.3,3.93944]
[1738221411475,3.13983,3184.9,3184.3,3.93944]
[1738221411681,3.13983,3184.9,3184.3,4.5084315]
[1738221412810,3.14004,3184.7,3184.3,0.7991]
[1738221414977,3.14001,3184.7,3184.0,0.8191]
[1738221415185,3.14028,3184.5,3184.0,0.8191]
[1738221415390,0.8055,3184.4,3183.9,3.14072]
[1738221416658,3.14028,3184.5,3183.9,3.14072]
[1738221416862,0.7894,3184.6,3184.0,3.14068]
[1738221417102,0.7894,3184.6,3184.1,0.7519]
[1738221417103,3.92951,3184.6,3184.1,0.7519]
[1738221418095,0.7894,3184.6,3184.0,3.14068]
[1738221418416,3.14022,3184.5,3184.0,3.14068]
[1738221418818,0.7894,3184.6,3184.0,6.28131]
[1738221419000,0.7894,3184.6,3184.0,7.26896574]
[1738221419200,0.7894,3184.6,3184.0,4.12828574]
[1738221419517,0.7894,3184.6,3184.1,3.14054]
[1738221420263,3.14001,3184.7,3184.2,0.8121]
[1738221420665,0.8202,3184.8,3184.3,3.14035]
[1738221421998,3.96624,3185.1,3184.5,3.14013]
[1738221423970,7.10594,3185.1,3184.5,3.14013]
[1738221424199,3.96624,3185.1,3184.5,3.14013]
[1738221424902,3.13964,3185.1,3184.6,0.7867]
[1738221425785,3.13945,3185.3,3184.7,3.13992]
[1738221426904,3.75192771,3185.5,3184.9,3.13979]
[1738221426905,3.13925,3185.5,3184.9,3.13979]
[1738221427217,3.13925,3185.5,3185.0,0.7592]
[1738221427540,3.91514,3185.7,3185.0,3.89883]
[1738221427703,3.91514,3185.7,3185.1,3.13959]
[1738221427903,3.13904,3185.7,3185.1,3.13959]
[1738221428203,3.13913,3185.6,3185.0,3.89883]
[1738221428516,3.13904,3185.7,3185.0,3.89885]
[1738221429314,3.13904,3185.7,3185.1,3.13958]
[1738221430746,3.13866,3186.1,3185.4,3.13932]
[1738221431049,3.8971,3186.2,3185.5,3.92902]
[1738221431290,3.13865,3186.1,3185.5,3.92902]
[1738221433268,3.13865,3186.1,3185.6,3.1391]
[1738221433430,3.13847,3186.3,3185.6,3.1391]
[1738221433854,3.13836,3186.4,3185.9,0.7871]
[1738221434761,3.91585,3186.6,3185.9,0.7871]
[1738221434762,3.13815,3186.6,3185.9,0.7871]
[1738221434968,3.13815,3186.6,3186.0,3.13866]
[1738221435667,3.13824,3186.5,3186.0,3.13866]
[1738221436536,3.13811,3186.7,3186.0,3.13866]
[1738221436736,3.90808,3186.8,3186.0,3.845112]
[1738221436970,3.13804,3186.7,3186.1,3.13855]
[1738221437365,3.13815,3186.6,3186.0,3.845162]
[1738221437672,3.13798,3186.8,3186.2,3.13852]
[1738221438173,0.61980147,3187.0,3186.4,0.8106]
[1738221438337,3.13785,3186.9,3186.4,0.8106]
[1738221440370,3.95625,3187.1,3186.4,0.8106]
[1738221440672,3.13765,3187.1,3186.4,0.8106]
[1738221440871,3.95038,3187.3,3186.8,0.8086]
[1738221441196,3.13729,3187.5,3186.8,3.94648]
[1738221441334,0.8129,3187.6,3186.9,3.13781]
[1738221441539,3.13708,3187.7,3187.1,0.8086]
[1738221441772,3.13708,3187.7,3187.1,3.94622]
[1738221441973,0.61692572,3187.6,3187.1,3.94622]
[1738221442663,3.75409572,3187.6,3187.1,0.8086]
[1738221443740,0.61692572,3187.6,3187.1,3.94623]
[1738221444574,3.13706,3187.7,3187.1,3.94623]
[1738221444933,3.77436583,3187.7,3187.1,3.94623]
[1738221445375,3.77436583,3187.7,3187.1,4.654637]
[1738221445941,3.13706,3187.7,3187.1,4.654637]
[1738221447268,3.13687,3187.9,3187.3,3.13736]
[1738221447468,3.13677,3188.0,3187.4,0.7769]
[1738221447669,3.13677,3188.0,3187.5,3.13724]
[1738221447897,3.13677,3188.0,3187.4,3.91424]
[1738221448307,3.13659,3188.2,3187.5,3.13721]
[1738221449186,3.13659,3188.2,3187.6,3.13714]
[1738221449390,3.13659,3188.2,3187.7,0.76]
[1738221450371,3.13648,3188.3,3187.7,3.89704]
[1738221450597,3.76719795,3188.4,3187.7,3.89704]
[1738221451309,3.9058,3188.6,3188.1,3.13666]
[1738221451310,3.1362,3188.6,3188.1,3.13666]
[1738221451602,3.13623,3188.6,3188.0,0.7548]
[1738221451771,3.13623,3188.6,3188.0,3.89153]
[1738221453417,3.13623,3188.6,3188.1,3.13665]
[1738221453570,3.13598,3188.8,3188.3,0.8327]
[1738221453975,3.13618,3188.6,3188.3,0.8327]
[1738221454179,3.13598,3188.8,3188.3,0.8327]
[1738221456320,3.13559,3189.2,3188.6,3.13608]
[1738221456504,3.13559,3189.2,3188.7,1.086808]
[1738221456707,0.7948,3189.9,3189.1,3.13566]
[1738221456895,0.7948,3189.9,3189.2,3.9087]
[1738221456896,3.13491,3189.9,3189.2,3.9087]
[1738221457101,3.92951,3190.1,3189.4,3.13536]
[1738221457299,3.13471,3190.1,3189.3,3.13542]
[1738221457535,3.13471,3190.1,3189.5,3.13527]
[1738221458413,3.13471,3190.1,3189.6,0.7951]
[1738221460288,0.63356168,3190.2,3189.6,0.7951]
[1738221460619,0.63356168,3190.2,3189.8,0.7547]
[1738221460819,0.63356168,3190.2,3189.8,3.88962]
[1738221460990,0.63356168,3190.2,3189.8,4.592089]
[1738221461189,3.1343,3190.5,3189.8,4.592089]
[1738221462279,3.1343,3190.5,3189.9,3.13488]
[1738221462858,3.13411,3190.7,3190.0,3.92539]
[1738221463663,3.13423,3190.6,3190.0,3.92539]
[1738221464238,3.13423,3190.6,3190.0,4.7016739]
[1738221465361,3.13403,3190.8,3190.0,4.7016739]
[1738221465547,3.13427,3190.6,3190.0,4.7016739]
[1738221465972,3.13427,3190.6,3190.0,1.5668839]
[1738221466280,3.13427,3190.6,3190.0,4.7016639]
[1738221466481,3.13427,3190.6,3190.1,0.47016639]
[1738221467243,3.13427,3190.6,3190.1,3.60485639]
[1738221467440,3.13416,3190.7,3190.1,3.60485639]
[1738221468293,3.1342,3190.6,3190.2,0.8053]
[1738221468878,3.13412,3190.7,3190.2,0.8053]
[1738221469064,3.13412,3190.7,3190.2,1.32394403]
[1738221469846,3.13403,3190.8,3190.2,1.32394403]
[1738221470564,3.13412,3190.7,3190.2,1.32394403]
[1738221471678,3.13412,3190.7,3189.9,0.7721]
[1738221471679,3.13479,3190.0,3189.9,0.7721]
[1738221471877,3.13515,3189.7,3189.3,0.7721]
[1738221472183,3.135,3189.8,3189.3,0.7721]
[1738221472347,3.13493,3189.9,3189.3,3.7721]
[1738221472546,3.13493,3189.9,3189.4,0.690767]
[1738221472981,3.1347,3190.1,3189.4,3.826127]
[1738221473182,3.1348,3190.0,3189.4,3.826127]
[1738221473563,3.1347,3190.1,3189.6,0.77]
[1738221474162,3.13452,3190.3,3189.6,3.90515]
[1738221474365,3.13452,3190.3,3189.7,0.70404]
[1738221474957,3.13462,3190.2,3189.7,3.83911]
[1738221475783,3.13452,3190.3,3189.7,0.70404]
[1738221476088,3.13452,3190.3,3189.6,0.77]
[1738221476089,3.13476,3190.1,3189.6,0.77]
[1738221476327,3.13487,3190.0,3189.6,0.77]
[1738221478086,3.1346,3190.2,3189.6,3.90517]
[1738221478890,3.13472,3190.1,3189.6,0.77]
[1738221479593,3.13479,3190.0,3189.6,0.77]
[1738221480210,3.13499,3189.8,3189.6,0.77]
[1738221480409,6.26965,3190.0,3189.6,0.77]
[1738221480614,3.13498,3189.9,3189.6,0.77]
[1738221481815,3.13479,3190.0,3189.6,0.77]
[1738221483103,3.13462,3190.2,3189.6,0.77]
[1738221483505,3.13479,3190.0,3189.6,0.77]
[1738221484983,3.13462,3190.2,3189.6,0.77]
[1738221485418,6.26931,3190.2,3189.6,0.77]
[1738221485825,3.1347,3190.1,3189.6,0.77]
[1738221488391,3.1348,3190.0,3189.6,0.77]
[1738221492503,6.26967,3190.0,3189.6,0.77]
[1738221493523,3.1348,3190.0,3189.6,0.77]
[1738221497026,3.1344,3190.4,3189.6,0.77]
[1738221497208,6.13458,3190.3,3189.6,0.77]
[1738221497408,3.1346,3190.2,3189.6,1.160537]
[1738221500220,3.1346,3190.2,3189.7,1.06790043]
[1738221501547,3.1346,3190.2,3189.8,0.29360043]
[1738221503725,3.1346,3190.2,3189.9,0.29360043]
[1738221505349,3.1346,3190.2,3190.0,0.29360043]
[1738221505676,3.13427,3190.6,3190.1,0.7671]
[1738221506653,3.13404,3190.8,3190.1,0.7671]
[1738221506956,6.26813,3190.8,3190.2,0.41954604]
[1738221507114,3.13404,3190.8,3190.1,0.7671]
[1738221508044,3.13404,3190.8,3190.2,0.29360043]
[1738221509157,3.13413,3190.7,3190.3,0.29360043]
[1738221510266,3.1344,3190.4,3190.3,0.29360043]